lending/lending_fUSD_20240504
["ID","MTS","AMOUNT","RATE_DAILY","PERIOD"]
[325425107,1714863038590,-188.96823682,0.00025326,2]
[325425108,1714863038599,-1350.14765282,0.00025327,2]
[325425109,1714863038609,-2123.58,0.00025908,2]
[325425110,1714863038619,-250.0,0.00026341,2]
[325425111,1714863038628,-1500.0,0.00026346,2]
[325425112,1714863038638,-1228.0,0.00026698,2]
[325425113,1714863038649,-151.355,0.00026698,2]
[325425114,1714863038658,-151.0,0.00026698,2]
[325425115,1714863038668,-151.0,0.00026698,2]
[325425116,1714863038678,-200.0,0.00026721,2]
[325425117,1714863038688,-500.0,0.00026742,2]
[325425118,1714863038697,-1148.26,0.00027068,15]
[325425119,1714863038706,-178.06,0.00027119,2]
[325425121,1714863038715,-388.89,0.00027397,10]
[325425123,1714863038725,-188.23,0.00027714,2]
[325425125,1714863038735,-167.0,0.00027739,2]
[325425127,1714863038749,-155.0,0.00028,2]
[325425129,1714863038759,-167.0,0.00028655,2]
[325425131,1714863038768,-13575.70474853,0.00028898,2]
[325425133,1714863038777,-167.0,0.00029571,2]
[325425135,1714863038787,-150.0,0.00029698,2]
[325425136,1714863038796,-2751.0,0.00029715,2]
[325425137,1714863038806,-186.53954695,0.00029999,2]
[325425138,1714863038815,-5677.45044794,0.0003,2]
[325425139,1714863038824,-2567.58260191,0.0003,4]
[325425140,1714863038834,-520.2,0.00030048,2]
[325425141,1714863038843,-1234.79,0.00030258,2]
[325425142,1714863038853,-250.0,0.00030271,2]
[325425143,1714863038863,-176.21,0.00030333,2]
[325425144,1714863038872,-13575.70474852,0.00030394,2]
[325425145,1714863038883,-2000.0,0.0003043,2]
[325425146,1714863038893,-167.0,0.00030486,2]
[325425147,1714863038902,-200.0,0.00030677,2]
[325425148,1714863038912,-1148.26,0.00030804,15]
[325425149,1714863038922,-1748.69131799,0.00030819,5]
[325425150,1714863038932,-151.0,0.000309,2]
[325425151,1714863038943,-170.82,0.00030983,2]
[325425152,1714863038953,-598.51,0.00031057,2]
[325425153,1714863038963,-1188.07094821,0.00031057,2]
[325425154,1714863038976,-22701.92905179,0.00031057,2]
[325425155,1714863038986,-176.21,0.00031123,2]
[325425156,1714863038995,-167.0,0.00031402,2]
[325425157,1714863039006,-10000.0,0.00031613,2]
[325425158,1714863039018,-13575.70474852,0.00031891,2]
[325425159,1714863039028,-300.0,0.00031901,2]
[325425160,1714863039038,-176.21,0.00031914,2]
[325425161,1714863039050,-236.7347572,0.00032102,7]
[325425162,1714863039062,-154.75697142,0.00032205,7]
[325425163,1714863039073,-167.0,0.00032318,2]
[325425164,1714863039083,-154.22761352,0.00032456,7]
[325425165,1714863039095,-155.0,0.00032874,4]
[325425166,1714863039104,-156.46,0.00032877,2]
[325425167,1714863039115,-300.0,0.00033271,2]
[325425168,1714863039125,-13575.70474852,0.00033387,2]
[325425169,1714863039135,-188.23,0.00033785,2]
[325425170,1714863039144,-1148.26,0.0003454,15]
[325425171,1714863039154,-150.0,0.00034548,10]
[325425172,1714863039164,-181.54390233,0.00034819,7]
[325425173,1714863039174,-13575.70474852,0.00034883,2]
[325425174,1714863039185,-1000.0,0.00034923,2]
[325425175,1714863039195,-598.51,0.00034939,2]
[325425176,1714863039205,-181.54390233,0.00035205,7]
[325425177,1714863039216,-205.11297875,0.00035293,7]
[325425178,1714863039226,-180.0,0.0003542,2]
[325425179,1714863039236,-1295.6,0.00035686,120]
[325425180,1714863039246,-13575.70474852,0.0003638,2]
[325425181,1714863039256,-153.03920344,0.00036418,7]
[325425182,1714863039267,-152.0,0.00036599,3]
[325425183,1714863039277,-261.09,0.00036951,120]
[325425184,1714863039287,-155.0,0.00036983,4]
[325425185,1714863039298,-13575.70474852,0.00037876,2]
[325425186,1714863039307,-1008.7,0.00038,2]
[325425187,1714863039318,-1148.26,0.00038276,15]
[325425188,1714863039327,-1000.0,0.00038356,30]
[325425189,1714863039336,-170.82,0.00038729,2]
[325425190,1714863039347,-598.51,0.00038821,2]
[325425191,1714863039357,-395.92,0.00038904,120]
[325425192,1714863039367,-181.54390236,0.0003891,7]
[325425193,1714863039377,-12704.4189913,0.00039,3]
[325425194,1714863039386,-1000.0,0.00039289,2]
[325425195,1714863039396,-1029.7,0.00039335,2]
[325425196,1714863039407,-3331.12016972,0.00039372,2]
[325425197,1714863039420,-1188.14,0.00039372,2]
[325425198,1714863039441,-1467.73390285,0.00039372,2]
[325425201,1714863041008,-263.40563939,0.00030321,2]
[325425202,1714863041042,-236.59436061,0.00030321,2]
[325425203,1714863041052,-481.49241495,0.00039372,2]
[325425204,1714863041074,-6330.00000002,0.00039372,2]
[325425205,1714863041087,-777.21826098,0.00039372,2]
[325425206,1714863041097,-232.78173902,0.000397,2]
[325425207,1714863041123,-1267.21826098,0.000397,2]
[325425208,1714863041133,-188.23,0.00039856,2]
[325425209,1714863041143,-10297.6144,0.00039899,7]
[325425210,1714863041153,-174.27566945,0.000399,13]
[325425211,1714863041163,-200.4641314,0.000399,6]
[325425212,1714863041173,-155.24547246,0.000399,13]
[325425213,1714863041182,-6442.6854,0.000399,2]
[325425214,1714863041192,-210.45714474,0.000399,12]
[325425215,1714863041201,-151.7413741,0.000399,2]
[325425216,1714863041211,-1544.9773,0.000399,120]
[325425217,1714863041222,-200.46413137,0.00039945,6]
[325425218,1714863041232,-200.46413137,0.0003999,6]
[325425219,1714863041242,-184.44737748,0.0003999,2]
[325425220,1714863041252,-529.70884617,0.00039999,31]
[325425221,1714863041261,-725.84865467,0.00039999,31]
[325425222,1714863041272,-591.66114168,0.00039999,31]
[325425223,1714863041281,-725.84865467,0.00039999,31]
[325425224,1714863041291,-725.84865467,0.00039999,31]
[325425225,1714863041303,-500.0,0.00039999,31]
[325425226,1714863041312,-725.84865467,0.00039999,31]
[325425227,1714863041323,-725.84865467,0.00039999,31]
[325425228,1714863041333,-725.84865467,0.00039999,31]
[325425229,1714863041343,-397.00894449,0.00039999,31]
[325425230,1714863041354,-725.84865467,0.00039999,31]
[325425231,1714863041363,-725.84865467,0.00039999,31]
[325425232,1714863041372,-725.84865467,0.00039999,31]
[325425233,1714863041382,-725.84865467,0.00039999,31]
[325425234,1714863041393,-725.84865467,0.00039999,31]
[325425235,1714863041402,-725.84865467,0.00039999,31]
[325425236,1714863041412,-725.84865467,0.00039999,31]
[325425237,1714863041421,-725.84865467,0.00039999,31]
[325425238,1714863041431,-725.84865467,0.00039999,31]
[325425239,1714863041440,-725.84865467,0.00039999,31]
[325425240,1714863041449,-725.84865467,0.00039999,31]
[325425241,1714863041459,-725.84865467,0.00039999,31]
[325425242,1714863041468,-725.84865467,0.00039999,31]
[325425243,1714863041478,-725.84865467,0.00039999,31]
[325425244,1714863041487,-725.84865467,0.00039999,31]
[325425245,1714863041497,-725.84865467,0.00039999,31]
[325425246,1714863041507,-725.84865467,0.00039999,31]
[325425247,1714863041516,-725.84865467,0.00039999,31]
[325425248,1714863041526,-725.84865467,0.00039999,31]
[325425249,1714863041535,-725.84865467,0.00039999,31]
[325425250,1714863041545,-725.84865467,0.00039999,31]
[325425251,1714863041555,-725.84865467,0.00039999,31]
[325425252,1714863041564,-725.84865467,0.00039999,31]
[325425253,1714863041573,-725.84865467,0.00039999,31]
[325425254,1714863041583,-725.84865467,0.00039999,31]
[325425255,1714863041593,-725.84865467,0.00039999,31]
[325425256,1714863041602,-725.84865467,0.00039999,31]
[325425257,1714863041612,-725.84865467,0.00039999,31]
[325425258,1714863041621,-725.84865467,0.00039999,31]
[325425259,1714863041630,-725.84865467,0.00039999,31]
[325425260,1714863041640,-725.84865467,0.00039999,31]
[325425261,1714863041649,-725.84865467,0.00039999,31]
[325425262,1714863041658,-725.84865467,0.00039999,31]
[325425263,1714863041668,-725.84865467,0.00039999,31]
[325425264,1714863041678,-725.84865467,0.00039999,31]
[325425265,1714863041688,-725.84865467,0.00039999,31]
[325425266,1714863041698,-725.84865467,0.00039999,31]
[325425267,1714863041707,-725.84865467,0.00039999,31]
[325425268,1714863041717,-725.84865467,0.00039999,31]
[325425269,1714863041726,-725.84865467,0.00039999,31]
[325425270,1714863041735,-725.84865467,0.00039999,31]
[325425271,1714863041745,-725.84865467,0.00039999,31]
[325425272,1714863041754,-725.84865467,0.00039999,31]
[325425273,1714863041764,-725.84865467,0.00039999,31]
[325425274,1714863041773,-725.84865467,0.00039999,31]
[325425275,1714863041783,-725.84865467,0.00039999,31]
[325425276,1714863041793,-725.84865467,0.00039999,31]
[325425277,1714863041803,-725.84865467,0.00039999,31]
[325425278,1714863041814,-725.84865467,0.00039999,31]
[325425279,1714863041823,-725.84865467,0.00039999,31]
[325425280,1714863041833,-725.84865467,0.00039999,31]
[325425281,1714863041842,-725.84865467,0.00039999,31]
[325425282,1714863041852,-725.84865467,0.00039999,31]
[325425283,1714863041861,-725.84865467,0.00039999,31]
[325425284,1714863041871,-725.84865467,0.00039999,31]
[325425285,1714863041880,-725.84865467,0.00039999,31]
[325425286,1714863041889,-725.84865467,0.00039999,31]
[325425287,1714863041899,-725.84865467,0.00039999,31]
[325425288,1714863041908,-725.84865467,0.00039999,31]
[325425289,1714863041917,-725.84865467,0.00039999,31]
[325425290,1714863041927,-2857.58476678,0.0004,5]
[325425291,1714863041936,-25969.06505529,0.0004,30]
[325425292,1714863042018,-406.24944498,0.0004,30]
[325425300,1714863043738,-973624.68549973,0.0004,30]
[325425301,1714863043750,-150.138505,0.0004,15]
[325425302,1714863043759,-500.0,0.0004,120]
[325425303,1714863043769,-500.0,0.0004,120]
[325425304,1714863043778,-500.0,0.0004,120]
[325425305,1714863043788,-500.0,0.0004,120]
[325425306,1714863043798,-500.0,0.0004,120]
[325425307,1714863043807,-500.0,0.0004,120]
[325425308,1714863043818,-500.0,0.0004,120]
[325425309,1714863043828,-500.0,0.0004,120]
[325425310,1714863043837,-500.0,0.0004,120]
[325425311,1714863043847,-500.0,0.0004,120]
[325425312,1714863043858,-500.0,0.0004,120]
[325425313,1714863043869,-500.0,0.0004,120]
[325425314,1714863043878,-500.0,0.0004,120]
[325425315,1714863043887,-500.0,0.0004,120]
[325425316,1714863043897,-500.0,0.0004,120]
[325425317,1714863043906,-500.0,0.0004,120]
[325425318,1714863043915,-500.0,0.0004,120]
[325425319,1714863043924,-500.0,0.0004,120]
[325425320,1714863043934,-500.0,0.0004,120]
[325425321,1714863043944,-500.0,0.0004,120]
[325425322,1714863043954,-500.0,0.0004,120]
[325425323,1714863043964,-500.0,0.0004,120]
[325425324,1714863043973,-500.0,0.0004,120]
[325425325,1714863043982,-500.0,0.0004,120]
[325425326,1714863043991,-500.0,0.0004,120]
[325425327,1714863044001,-500.0,0.0004,120]
[325425328,1714863044011,-500.0,0.0004,120]
[325425329,1714863044026,-518.0836014,0.0004,120]
[325425330,1714863044036,-390.77152648,0.0004001,30]
[325425331,1714863044045,-200.46413137,0.00040035,6]
[325425332,1714863044054,-200.46413137,0.0004008,7]
[325425333,1714863044065,-200.46413137,0.00040125,7]
[325425334,1714863044074,-200.46413137,0.0004017,7]
[325425335,1714863044083,-150.0,0.00040177,2]
[325425336,1714863044094,-200.46413137,0.00040215,7]
[325425337,1714863044104,-155.24547237,0.00040233,14]
[325425338,1714863044113,-151.7413741,0.00040233,2]
[325425339,1714863044122,-200.46413137,0.0004026,7]
[325425340,1714863044132,-444.95475943,0.0004027,2]
[325425341,1714863044141,-155.0,0.0004027,4]
[325425342,1714863044150,-200.46413137,0.00040304,7]
[325425343,1714863044159,-200.46413137,0.00040349,8]
[325425344,1714863044168,-200.46413137,0.00040394,8]
[325425345,1714863044178,-200.46413137,0.00040439,8]
[325425346,1714863044188,-150.0,0.0004046,2]
[325425347,1714863044198,-150.0,0.00040475,2]
[325425348,1714863044208,-200.46413137,0.00040484,8]
[325425349,1714863044219,-200.46413137,0.00040529,8]
[325425350,1714863044228,-155.24547237,0.00040567,14]
[325425351,1714863044238,-151.7413741,0.00040567,2]
[325425352,1714863044247,-200.46413137,0.00040574,8]
[325425353,1714863044257,-150.0,0.00040584,2]
[325425354,1714863044267,-200.46413137,0.00040619,9]
[325425355,1714863044276,-200.46413137,0.00040664,9]
[325425356,1714863044286,-2184.82802556,0.00040682,4]
[325425357,1714863044299,-29861.11471432,0.00040682,4]
[325425358,1714863044309,-200.46413137,0.00040709,9]
[325425359,1714863044319,-150.0,0.00040735,2]
[325425360,1714863044329,-150.0,0.0004074,2]
[325425361,1714863044338,-200.46413137,0.00040754,9]
[325425362,1714863044347,-200.46413137,0.00040799,9]
[325425363,1714863044357,-150.0,0.00040799,2]
[325425364,1714863044366,-150.0,0.00040833,2]
[325425365,1714863044376,-200.46413137,0.00040844,9]
[325425366,1714863044386,-13575.70474852,0.00040869,2]
[325425367,1714863044395,-150.0,0.00040874,2]
[325425368,1714863044405,-200.46413137,0.00040889,10]
[325425369,1714863044414,-150.0,0.00040893,2]
[325425370,1714863044423,-108635.9201764,0.000409,120]
[325425371,1714863044432,-155.24547237,0.000409,15]
[325425372,1714863044441,-151.7413741,0.000409,2]
[325425373,1714863044451,-216.98737483,0.000409,2]
[325425374,1714863044461,-974.94157379,0.000409,2]
[325425375,1714863044471,-200.46413137,0.00040934,10]
[325425376,1714863044481,-150.0,0.00040971,2]
[325425377,1714863044491,-200.46413137,0.00040979,10]
[325425378,1714863044500,-1470.46532596,0.00040992,2]
[325425379,1714863044510,-168.31011644,0.00040994,120]
[325425380,1714863044519,-324690.37905459,0.00040995,8]
[325425381,1714863044530,-172.58003911,0.00040995,15]
[325425382,1714863044541,-177.10224628,0.00040995,2]
[325425383,1714863044551,-214.0,0.00040995,2]
[325425384,1714863044560,-116526.88539592,0.00041,30]
[325425385,1714863044573,-883473.11460408,0.00041,30]
[325425386,1714863044584,-10110.53454806,0.00041,120]
[325425387,1714863044594,-284.0,0.00041,60]
[325425388,1714863044603,-200.46413137,0.00041024,10]
[325425389,1714863044613,-3498.38014246,0.00041045,2]
[325425390,1714863044623,-361.0,0.00041048,5]
[325425391,1714863044633,-942.60538403,0.00041063,2]
[325425392,1714863044642,-200.46413137,0.00041069,10]
[325425393,1714863044652,-150.0,0.00041083,2]
[325425394,1714863044662,-184.44737748,0.00041085,2]
[325425395,1714863044672,-277.86804255,0.00041092,4]
[325425396,1714863044682,-336.98240637,0.00041092,2]
[325425397,1714863044691,-617.74433242,0.00041092,4]
[325425398,1714863044701,-1224.62477475,0.00041092,4]
[325425399,1714863044711,-214.24802093,0.00041092,4]
[325425400,1714863044720,-2824.95716664,0.00041092,30]
[325425401,1714863044730,-158.52126803,0.00041092,4]
[325425402,1714863044739,-19591.67106291,0.00041092,7]
[325425403,1714863044748,-257.03149954,0.00041092,2]
[325425404,1714863044758,-155.24192914,0.00041092,4]
[325425405,1714863044767,-155.0,0.00041092,4]
[325425406,1714863044776,-184.64161214,0.00041092,4]
[325425407,1714863044786,-311.34410862,0.00041092,4]
[325425408,1714863044795,-5174.10818979,0.00041092,4]
[325425409,1714863044805,-626.33513578,0.00041092,30]
[325425410,1714863044815,-918.99059536,0.00041092,4]
[325425411,1714863044824,-1599.13239617,0.00041092,4]
[325425412,1714863044835,-305.36506382,0.00041093,4]
[325425413,1714863044844,-1878.64117005,0.00041093,4]
[325425414,1714863044854,-325.67432968,0.00041093,4]
[325425415,1714863044863,-156.53171333,0.00041093,4]
[325425416,1714863044873,-4933.23915409,0.00041093,4]
[325425417,1714863044882,-155.0,0.00041093,2]
[325425418,1714863044892,-156.06986434,0.00041093,4]
[325425419,1714863044901,-155.0,0.00041093,4]
[325425420,1714863044911,-215.98548558,0.00041093,4]
[325425421,1714863044920,-177.87258699,0.00041093,4]
[325425422,1714863044930,-156.64002537,0.00041093,4]
[325425423,1714863044939,-990.62994113,0.00041094,4]
[325425424,1714863044948,-2321.46650841,0.00041094,4]
[325425425,1714863044957,-155.56538191,0.00041094,4]
[325425426,1714863044967,-171.4552385,0.00041094,4]
[325425427,1714863044978,-236.56224941,0.00041094,4]
[325425428,1714863044987,-354889.41105616,0.00041094,4]
[325425429,1714863044998,-1000.0,0.00041094,120]
[325425430,1714863045008,-888.0,0.00041094,3]
[325425431,1714863045025,-666.0,0.00041094,2]
[325425432,1714863045043,-317.83715373,0.00041094,7]
[325425433,1714863045053,-317.83715373,0.00041094,7]
[325425434,1714863045063,-1197.88698647,0.00041095,3]
[325425435,1714863045073,-500.0,0.00041095,30]
[325425436,1714863045084,-499.34127485,0.00041095,30]
[325425437,1714863045094,-500.0,0.00041095,30]
[325425438,1714863045104,-446.03268684,0.00041095,30]
[325425439,1714863045114,-500.0,0.00041095,30]
[325425440,1714863045124,-440.49756078,0.00041095,30]
[325425441,1714863045134,-500.0,0.00041095,30]
[325425442,1714863045143,-500.0,0.00041095,30]
[325425443,1714863045153,-500.0,0.00041095,30]
[325425444,1714863045164,-500.0,0.00041095,30]
[325425445,1714863045173,-4755.44446193,0.00041095,4]
[325425446,1714863045183,-486.02124932,0.00041095,30]
[325425447,1714863045192,-155.0,0.00041095,2]
[325425448,1714863045201,-430.83590217,0.00041095,30]
[325425449,1714863045211,-560.51521049,0.00041095,4]
[325425450,1714863045223,-443.481164,0.00041095,15]
[325425451,1714863045233,-2212.20569301,0.00041095,4]
[325425452,1714863045242,-37393.75485043,0.00041095,2]
[325425453,1714863045251,-500.0,0.00041095,30]
[325425454,1714863045260,-1380.31778497,0.00041095,4]
[325425455,1714863045271,-1598.97391911,0.00041095,4]
[325425456,1714863045281,-167.56442339,0.00041095,30]
[325425457,1714863045290,-500.0,0.00041095,30]
[325425458,1714863045300,-486.22435234,0.00041095,4]
[325425459,1714863045311,-428.17289696,0.00041095,30]
[325425460,1714863045322,-500.0,0.00041095,30]
[325425461,1714863045332,-986.3,0.00041095,30]
[325425462,1714863045342,-501.90620682,0.00041095,30]
[325425463,1714863045351,-1457.53,0.00041095,30]
[325425464,1714863045361,-500.0,0.00041095,30]
[325425465,1714863045371,-500.0,0.00041095,30]
[325425466,1714863045381,-500.0,0.00041095,30]
[325425467,1714863045391,-455.34753345,0.00041095,30]
[325425468,1714863045401,-1667.49,0.00041095,30]
[325425469,1714863045413,-1690.23,0.00041095,30]
[325425470,1714863045423,-1408.87,0.00041095,30]
[325425471,1714863045432,-957.3,0.00041095,30]
[325425472,1714863045443,-1053.15,0.00041095,30]
[325425473,1714863045454,-500.0,0.00041095,30]
[325425474,1714863045463,-500.0,0.00041095,30]
[325425475,1714863045472,-500.0,0.00041095,30]
[325425476,1714863045482,-1269.8,0.00041095,30]
[325425477,1714863045491,-761.14,0.00041095,30]
[325425478,1714863045500,-1110.81,0.00041095,30]
[325425479,1714863045510,-910.53,0.00041095,30]
[325425480,1714863045520,-500.0,0.00041095,30]
[325425481,1714863045529,-500.0,0.00041095,30]
[325425482,1714863045539,-500.0,0.00041095,30]
[325425483,1714863045548,-500.0,0.00041095,30]
[325425484,1714863045557,-900.03,0.00041095,30]
[325425485,1714863045566,-715.99,0.00041095,30]
[325425486,1714863045575,-500.0,0.00041095,30]
[325425487,1714863045585,-617.36,0.00041095,30]
[325425488,1714863045595,-500.0,0.00041095,30]
[325425489,1714863045604,-1739.25,0.00041095,30]
[325425490,1714863045613,-500.0,0.00041095,30]
[325425491,1714863045622,-500.0,0.00041095,30]
[325425492,1714863045631,-1034.36,0.00041095,30]
[325425493,1714863045643,-500.0,0.00041095,30]
[325425494,1714863045653,-613.95,0.00041095,30]
[325425495,1714863045664,-432.48267008,0.00041095,30]
[325425496,1714863045674,-500.0,0.00041095,30]
[325425497,1714863045685,-500.0,0.00041095,30]
[325425498,1714863045694,-671.14,0.00041095,30]
[325425499,1714863045704,-500.0,0.00041095,30]
[325425500,1714863045714,-500.0,0.00041095,30]
[325425501,1714863045723,-500.0,0.00041095,30]
[325425502,1714863045733,-500.0,0.00041095,30]
[325425503,1714863045742,-500.0,0.00041095,30]
[325425504,1714863045751,-500.0,0.00041095,30]
[325425505,1714863045760,-1878.89,0.00041095,30]
[325425506,1714863045769,-500.0,0.00041095,30]
[325425507,1714863045779,-1495.37,0.00041095,2]
[325425508,1714863045788,-500.0,0.00041095,30]
[325425509,1714863045798,-810.87,0.00041095,30]
[325425510,1714863045808,-500.0,0.00041095,30]
[325425511,1714863045818,-1289.19,0.00041095,30]
[325425512,1714863045827,-300.0,0.00041095,7]
[325425513,1714863045838,-500.0,0.00041095,30]
[325425514,1714863045848,-500.0,0.00041095,30]
[325425515,1714863045858,-780.62,0.00041095,30]
[325425516,1714863045868,-500.0,0.00041095,30]
[325425517,1714863045878,-500.0,0.00041095,30]
[325425518,1714863045887,-500.0,0.00041095,30]
[325425519,1714863045896,-1129.81,0.00041095,30]
[325425520,1714863045907,-280.93891673,0.00041095,30]
[325425521,1714863045917,-500.0,0.00041095,30]
[325425522,1714863045927,-988.4,0.00041095,30]
[325425523,1714863045937,-506.1,0.00041095,30]
[325425524,1714863045948,-500.0,0.00041095,30]
[325425525,1714863045958,-757.24,0.00041095,30]
[325425526,1714863045968,-500.0,0.00041095,30]
[325425527,1714863045978,-1027.62,0.00041095,30]
[325425528,1714863045987,-500.0,0.00041095,30]
[325425529,1714863045997,-872.36,0.00041095,30]
[325425530,1714863046007,-500.0,0.00041095,30]
[325425531,1714863046024,-1310.07,0.00041095,30]
[325425532,1714863046036,-500.0,0.00041095,30]
[325425533,1714863046046,-500.0,0.00041095,30]
[325425534,1714863046056,-1488.52,0.00041095,30]
[325425535,1714863046067,-700.75,0.00041095,30]
[325425536,1714863046076,-500.0,0.00041095,30]
[325425537,1714863046086,-500.0,0.00041095,30]
[325425538,1714863046095,-500.0,0.00041095,30]
[325425539,1714863046104,-947.19,0.00041095,30]
[325425540,1714863046114,-803.33,0.00041095,30]
[325425541,1714863046123,-546.59,0.00041095,30]
[325425542,1714863046132,-500.0,0.00041095,30]
[325425543,1714863046142,-1082.88,0.00041095,30]
[325425544,1714863046151,-500.0,0.00041095,30]
[325425545,1714863046161,-500.0,0.00041095,30]
[325425546,1714863046170,-500.0,0.00041095,30]
[325425547,1714863046180,-881.75,0.00041095,30]
[325425548,1714863046189,-2082.58,0.00041095,2]
[325425549,1714863046199,-500.0,0.00041095,30]
[325425550,1714863046209,-500.0,0.00041095,30]
[325425551,1714863046218,-500.0,0.00041095,30]
[325425552,1714863046227,-500.0,0.00041095,30]
[325425553,1714863046237,-1043.74,0.00041095,30]
[325425554,1714863046246,-500.0,0.00041095,2]
[325425555,1714863046256,-500.0,0.00041095,30]
[325425556,1714863046265,-500.0,0.00041095,30]
[325425557,1714863046275,-500.0,0.00041095,30]
[325425558,1714863046284,-1372.79,0.00041095,30]
[325425559,1714863046293,-1019.13,0.00041095,30]
[325425560,1714863046303,-491.98832072,0.00041095,30]
[325425561,1714863046312,-1813.7,0.00041095,30]
[325425563,1714863046322,-1187.07,0.00041095,30]
[325425564,1714863046332,-915.63,0.00041095,30]
[325425565,1714863046341,-500.0,0.00041095,7]
[325425566,1714863046351,-722.64,0.00041095,30]
[325425567,1714863046360,-872.39,0.00041095,30]
[325425568,1714863046370,-782.68,0.00041095,30]
[325425569,1714863046380,-652.85,0.00041095,30]
[325425570,1714863046392,-500.0,0.00041095,30]
[325425571,1714863046401,-613.78,0.00041095,30]
[325425572,1714863046411,-734.73,0.00041095,30]
[325425573,1714863046419,-500.0,0.00041095,30]
[325425574,1714863046429,-1410.86,0.00041095,30]
[325425575,1714863046438,-500.0,0.00041095,30]
[325425576,1714863046448,-1185.66,0.00041095,30]
[325425577,1714863046457,-500.0,0.00041095,30]
[325425578,1714863046466,-500.0,0.00041095,30]
[325425579,1714863046476,-500.0,0.00041095,30]
[325425580,1714863046485,-500.0,0.00041095,30]
[325425581,1714863046495,-1235.43,0.00041095,30]
[325425582,1714863046504,-513.21,0.00041095,30]
[325425583,1714863046513,-500.0,0.00041095,30]
[325425584,1714863046523,-967.64,0.00041095,30]
[325425585,1714863046532,-500.0,0.00041095,30]
[325425586,1714863046542,-500.0,0.00041095,30]
[325425587,1714863046552,-1405.86,0.00041095,30]
[325425588,1714863046561,-766.74,0.00041095,30]
[325425590,1714863046570,-500.0,0.00041095,30]
[325425592,1714863046580,-500.0,0.00041095,30]
[325425593,1714863046590,-901.06,0.00041095,30]
[325425594,1714863046600,-775.53,0.00041095,30]
[325425595,1714863046609,-500.0,0.00041095,30]
[325425596,1714863046618,-500.0,0.00041095,30]
[325425597,1714863046627,-742.49,0.00041095,30]
[325425598,1714863046636,-1737.88,0.00041095,30]
[325425599,1714863046646,-500.0,0.00041095,30]
[325425600,1714863046656,-847.34,0.00041095,30]
[325425601,1714863046665,-1502.13,0.00041095,30]
[325425602,1714863046675,-500.0,0.00041095,30]
[325425603,1714863046685,-1478.96,0.00041095,30]
[325425604,1714863046695,-1587.37,0.00041095,30]
[325425605,1714863046705,-500.0,0.00041095,30]
[325425606,1714863046715,-898.89,0.00041095,30]
[325425607,1714863046725,-615.35,0.00041095,30]
[325425608,1714863046734,-970.55,0.00041095,30]
[325425609,1714863046744,-500.0,0.00041095,30]
[325425610,1714863046754,-1013.17,0.00041095,30]
[325425611,1714863046764,-500.0,0.00041095,30]
[325425612,1714863046775,-524.38,0.00041095,30]
[325425613,1714863046784,-1214.94,0.00041095,30]
[325425614,1714863046795,-672.21,0.00041095,30]
[325425615,1714863046805,-413.06936624,0.00041095,30]
[325425616,1714863046816,-500.0,0.00041095,30]
[325425617,1714863046826,-500.0,0.00041095,30]
[325425618,1714863046836,-725.96,0.00041095,30]
[325425619,1714863046846,-707.1,0.00041095,30]
[325425620,1714863046855,-500.0,0.00041095,30]
[325425621,1714863046865,-500.0,0.00041095,30]
[325425622,1714863046875,-500.0,0.00041095,30]
[325425623,1714863046884,-1774.45,0.00041095,30]
[325425624,1714863046894,-500.0,0.00041095,30]
[325425625,1714863046904,-160.68258932,0.00041095,30]
[325425626,1714863046916,-500.0,0.00041095,30]